[Event "Early-Titled-Tuesday-Blitz-January-16-2024"]
[Site "Chess.com"]
[Date "2024.01.16"]
[Round "7"]
[White "MokshAD1603"]
[Black "eCztery"]
[Result "0-1"]
[WhiteElo "2594"]
[BlackElo "2469"]
[TimeControl "180+1"]
[EndTime "9:24:03 PST"]
[Termination "eCztery won by checkmate"]

1. e4 {[%clk 0:02:59.2]} 1... c5 {[%clk 0:02:55.5]} 2. Nf3 {[%clk 0:02:59]} 2...
g6 {[%clk 0:02:52.9]} 3. d4 {[%clk 0:02:47.4]} 3... cxd4 {[%clk 0:02:52.7]} 4.
Nxd4 {[%clk 0:02:48.3]} 4... Nc6 {[%clk 0:02:50.6]} 5. c4 {[%clk 0:02:48.1]}
5... Nf6 {[%clk 0:02:49.9]} 6. Nc3 {[%clk 0:02:47.8]} 6... Nxd4 {[%clk
0:02:45.5]} 7. Qxd4 {[%clk 0:02:46.6]} 7... d6 {[%clk 0:02:46.3]} 8. Bg5 {[%clk
0:02:34.3]} 8... Bg7 {[%clk 0:02:46.4]} 9. Be2 {[%clk 0:02:33.8]} 9... O-O
{[%clk 0:02:45.9]} 10. Qd2 {[%clk 0:02:34.4]} 10... a5 {[%clk 0:02:43]} 11. O-O
{[%clk 0:02:28.1]} 11... a4 {[%clk 0:02:43.3]} 12. Rfd1 {[%clk 0:02:22.2]} 12...
Qa5 {[%clk 0:02:41.3]} 13. Rab1 {[%clk 0:02:19.8]} 13... Be6 {[%clk 0:02:31.8]}
14. f3 {[%clk 0:02:12.5]} 14... Rfc8 {[%clk 0:02:28.8]} 15. Nd5 {[%clk
0:02:10.9]} 15... Bxd5 {[%clk 0:02:20.9]} 16. exd5 {[%clk 0:02:05]} 16... Nd7
{[%clk 0:01:38.2]} 17. Qxa5 {[%clk 0:01:56.9]} 17... Rxa5 {[%clk 0:01:39.1]} 18.
Bd3 {[%clk 0:01:50.5]} 18... Kf8 {[%clk 0:01:35.7]} 19. Re1 {[%clk 0:01:34.9]}
19... Bd4+ {[%clk 0:01:24.4]} 20. Kh1 {[%clk 0:01:32.8]} 20... f6 {[%clk
0:01:24.2]} 21. Bd2 {[%clk 0:01:31.1]} 21... Raa8 {[%clk 0:01:13.1]} 22. f4
{[%clk 0:01:27.9]} 22... Rc7 {[%clk 0:01:08.6]} 23. Re4 {[%clk 0:01:25.9]} 23...
Ba7 {[%clk 0:01:05.1]} 24. Bc2 {[%clk 0:01:23.8]} 24... f5 {[%clk 0:00:58.7]}
25. Re2 {[%clk 0:01:17.7]} 25... Rxc4 {[%clk 0:00:58.7]} 26. Bc3 {[%clk
0:01:18.4]} 26... Rxf4 {[%clk 0:00:54.7]} 27. Rbe1 {[%clk 0:01:18.2]} 27... Ne5
{[%clk 0:00:48]} 28. Bxe5 {[%clk 0:01:14.5]} 28... dxe5 {[%clk 0:00:48.9]} 29.
Rxe5 {[%clk 0:01:15.2]} 29... Bc5 {[%clk 0:00:47.8]} 30. Bd3 {[%clk 0:01:04.3]}
30... Rd8 {[%clk 0:00:43.6]} 31. Bb5 {[%clk 0:01:03.2]} 31... Rb4 {[%clk
0:00:41]} 32. Bf1 {[%clk 0:01:01.2]} 32... Rxb2 {[%clk 0:00:41]} 33. Rc1 {[%clk
0:00:58.5]} 33... Bd6 {[%clk 0:00:39]} 34. Ree1 {[%clk 0:00:56.3]} 34... Rxa2
{[%clk 0:00:38.6]} 35. Rb1 {[%clk 0:00:56.9]} 35... Rd7 {[%clk 0:00:35.1]} 36.
Rec1 {[%clk 0:00:55.3]} 36... Kg7 {[%clk 0:00:32.5]} 37. g3 {[%clk 0:00:55.5]}
37... Rd2 {[%clk 0:00:27.8]} 38. Bb5 {[%clk 0:00:53.9]} 38... Rd8 {[%clk
0:00:27.7]} 39. Bxa4 {[%clk 0:00:54.4]} 39... Rxd5 {[%clk 0:00:22.7]} 40. Rxb7
{[%clk 0:00:54]} 40... Rd2 {[%clk 0:00:21.5]} 41. Re1 {[%clk 0:00:51.4]} 41...
Ra8 {[%clk 0:00:21]} 42. Bb3 {[%clk 0:00:45.9]} 42... Rb2 {[%clk 0:00:19.2]} 43.
Bd5 {[%clk 0:00:46.4]} 43... Rxb7 {[%clk 0:00:15.1]} 44. Bxb7 {[%clk 0:00:47.3]}
44... Ra2 {[%clk 0:00:15.5]} 45. Bd5 {[%clk 0:00:47]} 45... Rb2 {[%clk
0:00:16.4]} 46. Ra1 {[%clk 0:00:45.8]} 46... Kf6 {[%clk 0:00:17.3]} 47. Ra8
{[%clk 0:00:45.1]} 47... h5 {[%clk 0:00:17]} 48. Ra2 {[%clk 0:00:43.4]} 48...
Rb5 {[%clk 0:00:15.1]} 49. Bc4 {[%clk 0:00:42.4]} 49... Rc5 {[%clk 0:00:15.6]}
50. Be2 {[%clk 0:00:42.8]} 50... h4 {[%clk 0:00:11.7]} 51. gxh4 {[%clk
0:00:41.3]} 51... Re5 {[%clk 0:00:11.2]} 52. Kg2 {[%clk 0:00:39.5]} 52... Re4
{[%clk 0:00:11]} 53. h5 {[%clk 0:00:39.6]} 53... gxh5 {[%clk 0:00:09.6]} 54.
Bxh5 {[%clk 0:00:40.5]} 54... Rh4 {[%clk 0:00:10.2]} 55. Be2 {[%clk 0:00:39.4]}
55... Rxh2+ {[%clk 0:00:10.3]} 56. Kf1 {[%clk 0:00:40.1]} 56... Kg5 {[%clk
0:00:09.2]} 57. Ra4 {[%clk 0:00:38.8]} 57... Bc5 {[%clk 0:00:07.4]} 58. Rc4
{[%clk 0:00:37]} 58... Be3 {[%clk 0:00:07.1]} 59. Rc7 {[%clk 0:00:36.3]} 59...
e5 {[%clk 0:00:06.8]} 60. Rc2 {[%clk 0:00:31.6]} 60... Kf4 {[%clk 0:00:06.1]}
61. Bd3 {[%clk 0:00:31.5]} 61... Rh1+ {[%clk 0:00:04.2]} 62. Kg2 {[%clk
0:00:31.6]} 62... Rg1+ {[%clk 0:00:05.1]} 63. Kh2 {[%clk 0:00:32]} 63... e4
{[%clk 0:00:04.8]} 64. Bc4 {[%clk 0:00:31.5]} 64... Rg5 {[%clk 0:00:04.7]} 65.
Bf1 {[%clk 0:00:27.6]} 65... Rh5+ {[%clk 0:00:04.1]} 66. Bh3 {[%clk 0:00:27.5]}
66... Kf3 {[%clk 0:00:04.1]} 67. Rc8 {[%clk 0:00:26.6]} 67... f4 {[%clk
0:00:04]} 68. Rg8 {[%clk 0:00:26.2]} 68... Bf2 {[%clk 0:00:04.2]} 69. Rg6 {[%clk
0:00:07.5]} 69... Bg3+ {[%clk 0:00:04.3]} 70. Kg1 {[%clk 0:00:08.2]} 70... Rxh3
{[%clk 0:00:04.2]} 71. Ra6 {[%clk 0:00:08.7]} 71... e3 {[%clk 0:00:04.2]} 72.
Ra2 {[%clk 0:00:08.7]} 72... Bf2+ {[%clk 0:00:04.2]} 73. Kf1 {[%clk 0:00:07.8]}
73... Rh1# {[%clk 0:00:04.5]} 0-1

[Event "Early-Titled-Tuesday-Blitz-January-16-2024"]
[Site "Chess.com"]
[Date "2024.01.16"]
[Round "7"]
[White "crazy_m_attack"]
[Black "Adar_07"]
[Result "1-0"]
[WhiteElo "2481"]
[BlackElo "2658"]
[TimeControl "180+1"]
[EndTime "9:24:04 PST"]
[Termination "crazy_m_attack won on time"]

1. e4 {[%clk 0:03:00.9]} 1... c6 {[%clk 0:03:00]} 2. d4 {[%clk 0:02:56.8]} 2...
d5 {[%clk 0:03:00.9]} 3. Nc3 {[%clk 0:02:56.4]} 3... dxe4 {[%clk 0:02:59.5]} 4.
Nxe4 {[%clk 0:02:57.3]} 4... Nf6 {[%clk 0:02:59.9]} 5. Nxf6+ {[%clk 0:02:56.5]}
5... gxf6 {[%clk 0:03:00.8]} 6. c3 {[%clk 0:02:57.1]} 6... Bf5 {[%clk
0:02:59.8]} 7. Bd3 {[%clk 0:02:54.2]} 7... Bxd3 {[%clk 0:02:59.2]} 8. Qxd3
{[%clk 0:02:55.1]} 8... e6 {[%clk 0:02:59.9]} 9. Nf3 {[%clk 0:02:54.9]} 9... f5
{[%clk 0:02:57.9]} 10. Bf4 {[%clk 0:02:52.2]} 10... Nd7 {[%clk 0:02:56.3]} 11.
O-O-O {[%clk 0:02:50.1]} 11... Qa5 {[%clk 0:02:51.5]} 12. Kb1 {[%clk 0:02:48.6]}
12... Rg8 {[%clk 0:02:49.9]} 13. g3 {[%clk 0:02:46.3]} 13... Be7 {[%clk
0:02:47]} 14. Rhe1 {[%clk 0:02:45.2]} 14... O-O-O {[%clk 0:02:45.9]} 15. Qc2
{[%clk 0:02:36.8]} 15... Qb6 {[%clk 0:02:34.6]} 16. Nd2 {[%clk 0:02:33.5]} 16...
Qa6 {[%clk 0:02:31.3]} 17. Nb3 {[%clk 0:02:12.9]} 17... Nb6 {[%clk 0:02:26.8]}
18. Qe2 {[%clk 0:02:04.5]} 18... Qxe2 {[%clk 0:02:14.9]} 19. Rxe2 {[%clk
0:02:05.4]} 19... Nd5 {[%clk 0:02:15.5]} 20. Bd2 {[%clk 0:02:04.6]} 20... b6
{[%clk 0:02:07.6]} 21. c4 {[%clk 0:02:02.2]} 21... Nf6 {[%clk 0:02:07.3]} 22. f3
{[%clk 0:01:57.5]} 22... a5 {[%clk 0:02:06.1]} 23. a4 {[%clk 0:01:51.7]} 23...
Kb7 {[%clk 0:02:05.3]} 24. c5 {[%clk 0:01:38.1]} 24... Nd5 {[%clk 0:01:56]} 25.
cxb6 {[%clk 0:01:36.4]} 25... Bb4 {[%clk 0:01:43.6]} 26. Bxb4 {[%clk 0:01:24.8]}
26... Nxb4 {[%clk 0:01:43.3]} 27. Nxa5+ {[%clk 0:01:24.7]} 27... Kxb6 {[%clk
0:01:43.5]} 28. Nc4+ {[%clk 0:01:24.9]} 28... Ka6 {[%clk 0:01:41.9]} 29. Ne5
{[%clk 0:01:05.4]} 29... f6 {[%clk 0:01:37]} 30. Nd3 {[%clk 0:00:42.1]} 30...
Nxd3 {[%clk 0:01:29.9]} 31. Rxd3 {[%clk 0:00:43]} 31... e5 {[%clk 0:01:30]} 32.
Rc3 {[%clk 0:00:42.7]} 32... exd4 {[%clk 0:01:27.4]} 33. Rxc6+ {[%clk
0:00:42.7]} 33... Ka5 {[%clk 0:01:26.7]} 34. Rd2 {[%clk 0:00:25.6]} 34... f4
{[%clk 0:00:54.8]} 35. g4 {[%clk 0:00:19.9]} 35... f5 {[%clk 0:00:33.4]} 36.
Rc5+ {[%clk 0:00:19.1]} 36... Kb4 {[%clk 0:00:33.3]} 37. Rxf5 {[%clk 0:00:16.7]}
37... d3 {[%clk 0:00:25]} 38. Ka2 {[%clk 0:00:11.2]} 38... Rd4 {[%clk
0:00:23.9]} 39. Rb5+ {[%clk 0:00:04.5]} 39... Kc4 {[%clk 0:00:16.8]} 40. Rb3
{[%clk 0:00:04.3]} 40... Rgd8 {[%clk 0:00:15.6]} 41. a5 {[%clk 0:00:03.8]} 41...
R4d6 {[%clk 0:00:14.3]} 42. Rc3+ {[%clk 0:00:03.1]} 42... Kb4 {[%clk 0:00:14.2]}
43. Ra3 {[%clk 0:00:03.8]} 43... Kc4 {[%clk 0:00:10.2]} 44. a6 {[%clk
0:00:04.1]} 44... Ra8 {[%clk 0:00:09.7]} 45. Rc3+ {[%clk 0:00:03.2]} 45... Kb4
{[%clk 0:00:10.3]} 46. Rcxd3 {[%clk 0:00:03.1]} 46... Rdxa6+ {[%clk 0:00:10.9]}
47. Kb1 {[%clk 0:00:02.7]} 47... Ra1+ {[%clk 0:00:11.5]} 48. Kc2 {[%clk
0:00:03.1]} 48... R1a2 {[%clk 0:00:05.4]} 49. Rd4+ {[%clk 0:00:03.2]} 49... Kc5
{[%clk 0:00:05.6]} 50. Rxf4 {[%clk 0:00:03.6]} 50... Rc8 {[%clk 0:00:05.4]} 51.
Kb3 {[%clk 0:00:03.5]} 51... Rca8 {[%clk 0:00:04]} 52. Rc2+ {[%clk 0:00:02.7]}
52... Kd6 {[%clk 0:00:04]} 53. Rf5 {[%clk 0:00:02.4]} 53... R2a7 {[%clk
0:00:03.4]} 54. Rd2+ {[%clk 0:00:02.8]} 54... Ke6 {[%clk 0:00:03.8]} 55. Kc2
{[%clk 0:00:03]} 55... Rc7+ {[%clk 0:00:04]} 56. Kd1 {[%clk 0:00:02.8]} 56...
Ra1+ {[%clk 0:00:03.9]} 57. Ke2 {[%clk 0:00:03.4]} 57... Rcc1 {[%clk 0:00:04.2]}
58. Ke3 {[%clk 0:00:03.2]} 58... Re1+ {[%clk 0:00:04]} 59. Kf4 {[%clk
0:00:03.7]} 59... Rh1 {[%clk 0:00:04.9]} 60. Kg5 {[%clk 0:00:02.8]} 60... Ra4
{[%clk 0:00:02.8]} 61. Re2+ {[%clk 0:00:03]} 61... Kd7 {[%clk 0:00:02.9]} 62.
Kh6 {[%clk 0:00:03]} 62... Rg1 {[%clk 0:00:02.4]} 63. Kxh7 {[%clk 0:00:03.1]}
63... Ra6 {[%clk 0:00:03.2]} 64. Rf7+ {[%clk 0:00:02.7]} 64... Kd8 {[%clk
0:00:02.4]} 65. Kg7 {[%clk 0:00:02.4]} 65... Rd1 {[%clk 0:00:02.2]} 66. h4
{[%clk 0:00:02.5]} 66... Rdd6 {[%clk 0:00:02.5]} 67. h5 {[%clk 0:00:02.9]} 67...
Rh6 {[%clk 0:00:02.3]} 68. Rf8+ {[%clk 0:00:03]} 68... Kd7 {[%clk 0:00:02.6]}
69. Rd2+ {[%clk 0:00:03.4]} 69... Ke7 {[%clk 0:00:02.8]} 70. Rf7+ {[%clk
0:00:03.3]} 70... Ke8 {[%clk 0:00:03.4]} 71. Re2+ {[%clk 0:00:03.5]} 71... Kd8
{[%clk 0:00:03.6]} 72. f4 {[%clk 0:00:03]} 72... Rhc6 {[%clk 0:00:02.9]} 73. g5
{[%clk 0:00:03]} 73... Rab6 {[%clk 0:00:01.4]} 74. h6 {[%clk 0:00:03.5]} 74...
Rg6+ {[%clk 0:00:01.7]} 75. Kf8 {[%clk 0:00:03.3]} 1-0

[Event "Early-Titled-Tuesday-Blitz-January-16-2024"]
[Site "Chess.com"]
[Date "2024.01.16"]
[Round "7"]
[White "GeorgiosSouleidis"]
[Black "klimkoj"]
[Result "1/2-1/2"]
[WhiteElo "2684"]
[BlackElo "2869"]
[TimeControl "180+1"]
[EndTime "9:24:07 PST"]
[Termination "Game drawn - insufficient material"]

1. e4 {[%clk 0:03:00]} 1... e6 {[%clk 0:02:59]} 2. d4 {[%clk 0:02:59.8]} 2... d5
{[%clk 0:02:59.9]} 3. Nc3 {[%clk 0:03:00.4]} 3... Nf6 {[%clk 0:02:55.8]} 4. Bg5
{[%clk 0:02:59.8]} 4... Bb4 {[%clk 0:02:54.1]} 5. e5 {[%clk 0:02:58.9]} 5... h6
{[%clk 0:02:54.6]} 6. Bd2 {[%clk 0:02:59]} 6... Bxc3 {[%clk 0:02:51.6]} 7. bxc3
{[%clk 0:02:59.9]} 7... Ne4 {[%clk 0:02:51.3]} 8. Bc1 {[%clk 0:03:00.6]} 8... c5
{[%clk 0:02:50]} 9. Ne2 {[%clk 0:03:00.2]} 9... cxd4 {[%clk 0:02:20.8]} 10. cxd4
{[%clk 0:03:00.5]} 10... Qc7 {[%clk 0:02:15.1]} 11. f3 {[%clk 0:02:10.4]} 11...
Nc3 {[%clk 0:02:11.4]} 12. Qd2 {[%clk 0:02:10.5]} 12... Nxe2 {[%clk 0:02:08.6]}
13. Bxe2 {[%clk 0:02:11.4]} 13... b6 {[%clk 0:02:08.5]} 14. Ba3 {[%clk
0:02:06.1]} 14... Ba6 {[%clk 0:02:07.6]} 15. Bxa6 {[%clk 0:01:46]} 15... Nxa6
{[%clk 0:02:05.9]} 16. O-O {[%clk 0:01:44.8]} 16... Rc8 {[%clk 0:02:04.7]} 17.
Rac1 {[%clk 0:01:44.2]} 17... Qc3 {[%clk 0:02:04.2]} 18. Qxc3 {[%clk 0:01:14.2]}
18... Rxc3 {[%clk 0:02:05.1]} 19. Bb2 {[%clk 0:01:14.9]} 19... Rc4 {[%clk
0:02:04.7]} 20. c3 {[%clk 0:01:06.9]} 20... h5 {[%clk 0:02:00.8]} 21. Kf2 {[%clk
0:01:06.7]} 21... Kd7 {[%clk 0:02:00.5]} 22. Ke3 {[%clk 0:01:07.1]} 22... Nc7
{[%clk 0:01:57.5]} 23. Kd3 {[%clk 0:01:05.6]} 23... Nb5 {[%clk 0:01:52.5]} 24.
Ra1 {[%clk 0:00:59.7]} 24... Ra4 {[%clk 0:01:51.6]} 25. Rfc1 {[%clk 0:00:57.9]}
25... Rc8 {[%clk 0:01:50.9]} 26. g3 {[%clk 0:00:57.8]} 26... f6 {[%clk
0:01:48.8]} 27. exf6 {[%clk 0:00:49.4]} 27... gxf6 {[%clk 0:01:49.7]} 28. Re1
{[%clk 0:00:46.6]} 28... Nd6 {[%clk 0:01:45.4]} 29. a3 {[%clk 0:00:35]} 29...
Ra5 {[%clk 0:01:40.1]} 30. Bc1 {[%clk 0:00:31.5]} 30... Rb5 {[%clk 0:01:35.4]}
31. a4 {[%clk 0:00:24.5]} 31... Rb3 {[%clk 0:01:26.4]} 32. Bd2 {[%clk
0:00:24.9]} 32... Nc4 {[%clk 0:01:18.9]} 33. Rec1 {[%clk 0:00:25]} 33... e5
{[%clk 0:01:09.5]} 34. dxe5 {[%clk 0:00:23.3]} 34... fxe5 {[%clk 0:01:10.3]} 35.
Rc2 {[%clk 0:00:18.9]} 35... Rb2 {[%clk 0:01:03.9]} 36. Rxb2 {[%clk 0:00:14.4]}
36... Nxb2+ {[%clk 0:01:04.8]} 37. Ke2 {[%clk 0:00:12.1]} 37... Nc4 {[%clk
0:01:03.4]} 38. h4 {[%clk 0:00:07.5]} 38... e4 {[%clk 0:00:57.9]} 39. fxe4
{[%clk 0:00:05.6]} 39... dxe4 {[%clk 0:00:58.8]} 40. Bf4 {[%clk 0:00:05.6]}
40... Ke6 {[%clk 0:00:57.3]} 41. Rd1 {[%clk 0:00:05.8]} 41... Nb2 {[%clk
0:00:28.5]} 42. Rd6+ {[%clk 0:00:05.7]} 42... Kf7 {[%clk 0:00:25.8]} 43. Rd7+
{[%clk 0:00:05.9]} 43... Ke6 {[%clk 0:00:26.1]} 44. Rd6+ {[%clk 0:00:06]} 44...
Ke7 {[%clk 0:00:25.7]} 45. Rd4 {[%clk 0:00:04.5]} 45... Rxc3 {[%clk 0:00:25.6]}
46. Rxe4+ {[%clk 0:00:05]} 46... Kf7 {[%clk 0:00:25]} 47. a5 {[%clk 0:00:04.6]}
47... Rc2+ {[%clk 0:00:20.6]} 48. Kf3 {[%clk 0:00:04.2]} 48... bxa5 {[%clk
0:00:20.4]} 49. Rd4 {[%clk 0:00:03.3]} 49... a4 {[%clk 0:00:20.5]} 50. Rd7+
{[%clk 0:00:03.2]} 50... Ke6 {[%clk 0:00:20.8]} 51. Rxa7 {[%clk 0:00:04.1]}
51... Rc3+ {[%clk 0:00:19.4]} 52. Ke4 {[%clk 0:00:04.4]} 52... Rc4+ {[%clk
0:00:19.7]} 53. Kf3 {[%clk 0:00:04.7]} 53... Rc3+ {[%clk 0:00:20.2]} 54. Ke4
{[%clk 0:00:05.1]} 54... Rc4+ {[%clk 0:00:20.8]} 55. Kf3 {[%clk 0:00:05]} 55...
Kd5 {[%clk 0:00:21.7]} 56. Ra5+ {[%clk 0:00:04.4]} 56... Rc5 {[%clk 0:00:19.5]}
57. Ra8 {[%clk 0:00:04.3]} 57... Kc4 {[%clk 0:00:18.7]} 58. g4 {[%clk
0:00:03.7]} 58... hxg4+ {[%clk 0:00:18.5]} 59. Kxg4 {[%clk 0:00:04.6]} 59... Kb3
{[%clk 0:00:16.9]} 60. Bd6 {[%clk 0:00:04.3]} 60... Rc4+ {[%clk 0:00:16.4]} 61.
Kg5 {[%clk 0:00:04.4]} 61... Rc6 {[%clk 0:00:16.4]} 62. Be7 {[%clk 0:00:04.1]}
62... Nc4 {[%clk 0:00:15.3]} 63. h5 {[%clk 0:00:03.7]} 63... Re6 {[%clk
0:00:14.7]} 64. Bf8 {[%clk 0:00:03.9]} 64... Ne5 {[%clk 0:00:14.6]} 65. Rb8+
{[%clk 0:00:02.3]} 65... Kc3 {[%clk 0:00:12.8]} 66. Rc8+ {[%clk 0:00:02.5]}
66... Kd3 {[%clk 0:00:12.5]} 67. Ra8 {[%clk 0:00:02.5]} 67... Nf7+ {[%clk
0:00:08.5]} 68. Kf5 {[%clk 0:00:02.1]} 68... Re5+ {[%clk 0:00:07.1]} 69. Kf6
{[%clk 0:00:02.3]} 69... Rxh5 {[%clk 0:00:07.7]} 70. Kxf7 {[%clk 0:00:02.5]}
70... Rh4 {[%clk 0:00:07.9]} 71. Bg7 {[%clk 0:00:02.6]} 71... Rc4 {[%clk
0:00:08.2]} 72. Be5 {[%clk 0:00:02.7]} 72... Kc2 {[%clk 0:00:08.6]} 73. Ke6
{[%clk 0:00:03.2]} 73... Kb3 {[%clk 0:00:09.2]} 74. Kd5 {[%clk 0:00:03.7]} 74...
Rb4 {[%clk 0:00:09.1]} 75. Bd4 {[%clk 0:00:04]} 75... a3 {[%clk 0:00:09.3]} 76.
Bc5 {[%clk 0:00:03.9]} 76... Ra4 {[%clk 0:00:09.7]} 77. Rxa4 {[%clk 0:00:03.6]}
77... Kxa4 {[%clk 0:00:08.1]} 78. Bxa3 {[%clk 0:00:03.7]} 1/2-1/2

[Event "Early-Titled-Tuesday-Blitz-January-16-2024"]
[Site "Chess.com"]
[Date "2024.01.16"]
[Round "7"]
[White "stasOR4ik"]
[Black "Felix-Rose"]
[Result "1-0"]
[WhiteElo "2408"]
[BlackElo "2209"]
[TimeControl "180+1"]
[EndTime "9:24:09 PST"]
[Termination "stasOR4ik won by resignation"]

1. e4 {[%clk 0:02:33.6]} 1... e5 {[%clk 0:02:59.3]} 2. Nf3 {[%clk 0:02:33.6]}
2... Nc6 {[%clk 0:02:59.7]} 3. Bb5 {[%clk 0:02:34.1]} 3... a6 {[%clk 0:02:59.7]}
4. Ba4 {[%clk 0:02:33.9]} 4... Nf6 {[%clk 0:03:00]} 5. O-O {[%clk 0:02:34]} 5...
b5 {[%clk 0:02:58.9]} 6. Bb3 {[%clk 0:02:33.8]} 6... Bc5 {[%clk 0:02:59.2]} 7.
c3 {[%clk 0:02:31.4]} 7... d6 {[%clk 0:02:59.2]} 8. d4 {[%clk 0:02:31]} 8... Bb6
{[%clk 0:02:59.9]} 9. dxe5 {[%clk 0:02:13.4]} 9... Nxe5 {[%clk 0:02:57.9]} 10.
Nxe5 {[%clk 0:02:11.2]} 10... dxe5 {[%clk 0:02:58.3]} 11. Qxd8+ {[%clk
0:02:08.2]} 11... Kxd8 {[%clk 0:02:59.2]} 12. Bg5 {[%clk 0:02:08.5]} 12... Ke7
{[%clk 0:02:47.4]} 13. Bd5 {[%clk 0:02:05.7]} 13... Ra7 {[%clk 0:02:42.3]} 14.
a4 {[%clk 0:02:03.3]} 14... Be6 {[%clk 0:02:31.4]} 15. a5 {[%clk 0:01:48.2]}
15... Bc5 {[%clk 0:02:29.7]} 16. b4 {[%clk 0:01:48.3]} 16... Bd6 {[%clk
0:02:29.6]} 17. Rd1 {[%clk 0:01:45.7]} 17... h6 {[%clk 0:02:26.4]} 18. Be3
{[%clk 0:01:38.5]} 18... Bxd5 {[%clk 0:02:14]} 19. Bxa7 {[%clk 0:01:25.1]} 19...
Bxe4 {[%clk 0:02:12.5]} 20. Nd2 {[%clk 0:01:22.9]} 20... Bd3 {[%clk 0:02:07.9]}
21. Nb3 {[%clk 0:01:19.8]} 21... Bc2 {[%clk 0:01:59.9]} 22. Nd2 {[%clk
0:01:11.3]} 22... Bxd1 {[%clk 0:01:58.5]} 23. Rxd1 {[%clk 0:01:12.2]} 23... Ra8
{[%clk 0:01:45.2]} 24. Be3 {[%clk 0:01:11.1]} 24... Rc8 {[%clk 0:01:34.7]} 25.
Nb3 {[%clk 0:01:06.2]} 25... Ne4 {[%clk 0:01:28.6]} 26. Rc1 {[%clk 0:00:55.9]}
26... c5 {[%clk 0:01:18.2]} 27. f3 {[%clk 0:00:55]} 27... c4 {[%clk 0:01:14.7]}
28. Na1 {[%clk 0:00:43.8]} 28... Nf6 {[%clk 0:00:56]} 29. Nc2 {[%clk 0:00:43.1]}
29... Nd5 {[%clk 0:00:54.7]} 30. Bd2 {[%clk 0:00:42.9]} 30... f5 {[%clk
0:00:50.8]} 31. Kf1 {[%clk 0:00:42.8]} 31... Ke6 {[%clk 0:00:50.7]} 32. Ke2
{[%clk 0:00:42.7]} 32... Be7 {[%clk 0:00:50.2]} 33. Ne3 {[%clk 0:00:37.3]} 33...
Nf4+ {[%clk 0:00:46.2]} 34. Kf1 {[%clk 0:00:35.9]} 34... Rd8 {[%clk 0:00:43.2]}
35. Rd1 {[%clk 0:00:35.2]} 35... Nd3 {[%clk 0:00:38.9]} 36. g4 {[%clk
0:00:30.1]} 36... g6 {[%clk 0:00:37.2]} 37. Ke2 {[%clk 0:00:25.2]} 37... Bg5
{[%clk 0:00:36.7]} 38. Rh1 {[%clk 0:00:21.1]} 38... Nf4+ {[%clk 0:00:34.5]} 39.
Ke1 {[%clk 0:00:18.5]} 39... Rxd2 {[%clk 0:00:29.1]} 40. Kxd2 {[%clk 0:00:16.6]}
40... Ng2 {[%clk 0:00:29.4]} 41. h4 {[%clk 0:00:15.4]} 41... Bxe3+ {[%clk
0:00:28.6]} 42. Ke2 {[%clk 0:00:16.2]} 42... Bf4 {[%clk 0:00:26.8]} 43. h5
{[%clk 0:00:15.9]} 43... g5 {[%clk 0:00:26.9]} 44. Rd1 {[%clk 0:00:13.4]} 44...
fxg4 {[%clk 0:00:24.9]} 45. fxg4 {[%clk 0:00:13.2]} 45... Ne3 {[%clk 0:00:25.3]}
46. Rd8 {[%clk 0:00:12.8]} 46... Nxg4 {[%clk 0:00:24.7]} 47. Ra8 {[%clk
0:00:11.3]} 47... Kf5 {[%clk 0:00:24.5]} 48. Rxa6 {[%clk 0:00:11.2]} 48... Nf6
{[%clk 0:00:22.4]} 49. Rb6 {[%clk 0:00:10.1]} 49... g4 {[%clk 0:00:22.5]} 50. a6
{[%clk 0:00:09.4]} 50... Ne4 {[%clk 0:00:19.1]} 51. a7 {[%clk 0:00:07.9]} 51...
Nxc3+ {[%clk 0:00:19.6]} 52. Kf1 {[%clk 0:00:07.9]} 52... g3 {[%clk 0:00:18.7]}
53. a8=Q {[%clk 0:00:07.4]} 53... Ne4 {[%clk 0:00:19.1]} 54. Qf8+ {[%clk
0:00:07.2]} 54... Kg4 {[%clk 0:00:19.6]} 55. Qg8+ {[%clk 0:00:07.4]} 55... Kf3
{[%clk 0:00:20]} 56. Rg6 {[%clk 0:00:06.1]} 56... Nd2+ {[%clk 0:00:20]} 57. Ke1
{[%clk 0:00:06.6]} 57... Ne4 {[%clk 0:00:20.5]} 58. Rg4 {[%clk 0:00:06.1]} 58...
c3 {[%clk 0:00:20.3]} 59. Kd1 {[%clk 0:00:06.3]} 59... Nf2+ {[%clk 0:00:20.1]}
60. Kc2 {[%clk 0:00:06.6]} 60... Nxg4 {[%clk 0:00:21]} 61. Qd5+ {[%clk
0:00:06.7]} 61... e4 {[%clk 0:00:21.4]} 62. Qd1+ {[%clk 0:00:06.9]} 62... Kf2
{[%clk 0:00:21.8]} 63. Qxg4 {[%clk 0:00:07.8]} 63... g2 {[%clk 0:00:22.1]} 64.
Qxf4+ {[%clk 0:00:08.2]} 64... Ke1 {[%clk 0:00:22.5]} 65. Qxe4+ {[%clk
0:00:08.6]} 65... Kf1 {[%clk 0:00:22.9]} 66. Qf3+ {[%clk 0:00:09.1]} 66... Kg1
{[%clk 0:00:22.6]} 67. Kxc3 {[%clk 0:00:09.7]} 67... Kh1 {[%clk 0:00:23.1]} 68.
Kd4 {[%clk 0:00:09]} 68... Kh2 {[%clk 0:00:23.8]} 69. Qf4+ {[%clk 0:00:08.4]}
69... Kh1 {[%clk 0:00:24.2]} 70. Qh4+ {[%clk 0:00:07.9]} 70... Kg1 {[%clk
0:00:24.4]} 71. Kc5 {[%clk 0:00:08.8]} 71... Kf1 {[%clk 0:00:24.5]} 72. Qf4+
{[%clk 0:00:09.2]} 72... Ke1 {[%clk 0:00:25]} 73. Qe3+ {[%clk 0:00:09.4]} 73...
Kf1 {[%clk 0:00:25.3]} 74. Qf3+ {[%clk 0:00:10]} 74... Kg1 {[%clk 0:00:25.7]}
75. Kxb5 {[%clk 0:00:10.6]} 75... Kh1 {[%clk 0:00:26.6]} 76. Qh3+ {[%clk
0:00:10.6]} 76... Kg1 {[%clk 0:00:27]} 77. Kc5 {[%clk 0:00:11.2]} 77... Kf1
{[%clk 0:00:27.7]} 78. Qxg2+ {[%clk 0:00:11.4]} 78... Kxg2 {[%clk 0:00:28.4]}
79. b5 {[%clk 0:00:12.3]} 1-0